bitfinex-derivatives/quotes_ETHF0:USTF0_20250309
["timestamp","ask_amount","ask_price","bid_price","bid_amount"]
[1741534943147,0.94938,2107.0,2106.9,0.6214]
[1741534943348,0.94937,2107.1,2106.9,0.6214]
[1741534943948,0.94938,2107.0,2106.9,0.6214]
[1741534944146,0.94937,2107.1,2106.9,0.6214]
[1741534944648,3.2078,2107.2,2106.6,6.06092132]
[1741534944649,0.9495,2106.8,2106.6,6.06092132]
[1741534944849,0.94952,2106.7,2106.6,3.21492132]
[1741534945055,0.94952,2106.7,2106.6,0.00712132]
[1741534946350,4.0,2106.7,2105.8,1.2527]
[1741534946552,0.94982,2106.1,2105.8,1.2527]
[1741534946849,0.94984,2106.0,2105.8,1.2527]
[1741534947057,0.95001,2105.6,2105.5,3.2078]
[1741534947255,3.2078,2105.9,2105.4,4.44619]
[1741534947452,0.00712132,2105.7,2105.4,3.4961]
[1741534947656,0.00712132,2105.7,2105.3,0.00712132]
[1741534947851,0.9501,2105.4,2105.3,0.00712132]
[1741534948252,3.2078,2105.6,2105.3,0.00712132]
[1741534948452,0.9501,2105.4,2105.3,0.00712132]
[1741534948653,0.95008,2105.5,2105.3,0.00712132]
[1741534948853,0.00712132,2105.7,2105.3,0.00712132]
[1741534949055,0.95006,2105.5,2105.3,0.00712132]
[1741534949255,0.00712132,2105.7,2105.3,0.00712132]
[1741534949463,0.95712132,2105.7,2105.3,0.00712132]
[1741534949762,0.00712132,2105.7,2105.4,3.2078]
[1741534950057,0.00712132,2105.7,2105.4,4.15788]
[1741534950356,0.00712132,2105.7,2105.5,0.95004]
[1741534950553,0.00712132,2105.7,2105.5,0.95002]
[1741534950960,0.00712132,2105.7,2105.4,3.2078]
[1741534951453,0.95004,2105.6,2105.4,3.2078]
[1741534951654,0.00712132,2105.7,2105.4,3.2078]
[1741534951963,0.00712132,2105.7,2105.4,4.15787]
[1741534952261,0.95005,2105.6,2105.4,3.2078]
[1741534952957,0.95005,2105.6,2105.3,0.00712132]
[1741534952958,0.95004,2105.6,2105.3,0.00712132]
[1741534953154,0.00712132,2105.7,2105.3,0.00712132]
[1741534953355,0.95003,2105.6,2105.3,0.00712132]
[1741534953558,0.00712132,2105.7,2105.3,3.21492132]
[1741534953754,0.00712132,2105.7,2105.3,5.47092132]
[1741534953963,0.00712132,2105.7,2105.6,4.15781]
[1741534954154,0.00712132,2105.7,2105.6,3.2078]
[1741534954352,0.00712132,2105.7,2105.6,4.15781]
[1741534954761,4.15756,2106.2,2105.6,7.2078]
[1741534954957,4.15756,2106.2,2105.8,0.94991]
[1741534955162,3.2078,2106.2,2105.6,3.2078]
[1741534955354,0.94986,2106.0,2105.6,4.15778]
[1741534955663,0.94979,2106.1,2105.8,0.94992]
[1741534955958,3.21492132,2106.2,2105.7,2.985]
[1741534956155,3.21492132,2106.2,2105.9,0.94986]
[1741534956555,3.21492132,2106.2,2105.7,5.239]
[1741534956762,0.94981,2106.1,2105.8,0.94992]
[1741534957062,0.94981,2106.1,2105.7,5.239]
[1741534957450,0.00712132,2106.2,2105.7,5.239]
[1741534957756,0.00712132,2106.2,2106.0,0.94981]
[1741534957955,0.00712132,2106.2,2105.9,3.2078]
[1741534958556,0.00712132,2106.2,2106.0,2.22322]
[1741534958762,0.00712132,2106.2,2106.1,0.94979]
[1741534959149,5.4588,2106.9,2106.1,4.0]
[1741534959353,0.94948,2106.8,2106.5,0.94959]
[1741534959559,0.94941,2107.0,2106.6,3.2078]
[1741534959959,2.25,2107.2,2106.6,3.2078]
[1741534960262,0.95408756,2107.1,2106.8,0.94944]
[1741534960461,0.00474756,2107.1,2106.9,0.94941]
[1741534960756,0.95409756,2107.1,2106.7,1.21442132]
[1741534960961,0.00474756,2107.1,2106.7,1.21442132]
[1741534961162,0.94941,2107.0,2106.7,2.16392132]
[1741534961363,0.94944,2106.9,2106.7,1.21442132]
[1741534961555,0.9494,2107.0,2106.7,2.16392132]
[1741534961755,0.00474756,2107.1,2106.7,1.21442132]
[1741534961956,0.00474756,2107.1,2106.9,0.94941]
[1741534962152,0.95411756,2107.1,2106.8,0.94945]
[1741534962358,0.95410756,2107.1,2106.8,0.94947]
[1741534962766,0.94939,2107.0,2106.7,2.16391132]
[1741534963159,0.94947,2106.8,2106.7,0.00712132]
[1741534964367,3.2078,2107.0,2106.7,0.00712132]
[1741534964569,0.95410756,2107.1,2106.8,0.94944]
[1741534964863,0.00474756,2107.1,2106.9,0.94941]
[1741534965268,0.00474756,2107.1,2106.7,41.42792132]
[1741534965466,0.9494,2107.0,2106.7,42.37741132]
[1741534965663,0.94947,2106.8,2106.7,0.62792132]
[1741534965871,0.00474756,2107.1,2106.7,0.62792132]
[1741534966363,0.94947,2106.8,2106.7,0.62792132]
[1741534966565,0.94945,2106.9,2106.7,1.57742132]
[1741534966956,0.00474756,2107.1,2106.8,0.94946]
[1741534967155,0.94945,2106.9,2106.7,0.62792132]
[1741534967368,0.94938,2107.0,2106.7,1.57740132]
[1741534967565,0.95409756,2107.1,2106.9,0.94941]
[1741534967765,0.00474756,2107.1,2106.9,0.94941]
[1741534967963,0.00474756,2107.1,2106.9,3.2078]
[1741534968265,0.94938,2107.0,2106.7,1.25692132]
[1741534968465,0.95411756,2107.1,2106.8,0.94943]
[1741534968760,0.00474756,2107.1,2106.9,0.9494]
[1741534968965,0.9494,2107.0,2106.8,0.94946]
[1741534969268,0.9494,2107.0,2106.7,1.25692132]
[1741534969462,0.00474756,2107.1,2106.8,0.94946]
[1741534969668,0.00474756,2107.1,2106.7,2.20641132]
[1741534969867,0.94941,2107.0,2106.7,2.20641132]
[1741534970163,0.94947,2106.8,2106.7,0.00712132]
[1741534970963,0.9497,2106.3,2106.2,3.2078]
[1741534971169,0.94959,2106.6,2106.2,4.1575]
[1741534971363,0.5931,2106.7,2106.2,3.2078]
[1741534971562,0.9497,2106.3,2106.2,3.2078]
[1741534972365,3.2078,2106.5,2106.0,0.00712132]
[1741534972572,3.2078,2106.2,2105.3,15.31439216]
[1741534972765,0.94996,2105.8,2105.3,0.6349]
[1741534973070,5.4548,2106.1,2105.6,3.2078]
[1741534973265,6.1015,2106.4,2105.7,0.94997]
[1741534973471,6.1015,2106.4,2105.6,3.2078]
[1741534973670,0.94978,2106.2,2105.8,0.94991]
[1741534973869,0.00712132,2106.2,2105.8,0.95703132]
[1741534974272,0.9498,2106.1,2105.9,3.2078]
[1741534974468,0.00712132,2106.2,2105.9,3.2078]
[1741534974662,0.94979,2106.1,2105.9,3.8427]
[1741534975269,0.00712132,2106.2,2105.9,3.8427]
[1741534975576,0.9498,2106.1,2105.9,3.8427]
[1741534975874,0.00712132,2106.2,2105.9,3.8427]
[1741534976375,0.94985,2106.0,2105.8,0.00712132]
[1741534976966,0.00712132,2106.2,2105.8,0.00712132]
[1741534976967,0.94988,2105.9,2105.8,0.00712132]
[1741534977168,0.00712132,2106.2,2105.8,0.00712132]
[1741534977864,0.94979,2106.1,2106.0,3.2078]
[1741534978069,0.00712132,2106.2,2106.0,44.0078]
[1741534978271,0.00712132,2106.2,2106.0,44.95762]
[1741534978675,0.00712132,2106.2,2106.0,44.9576]
[1741534979179,0.00712132,2106.2,2105.8,0.00712132]
[1741534979364,0.94988,2105.9,2105.8,0.00712132]
[1741534979771,0.94986,2106.0,2105.8,0.00712132]
[1741534979971,0.94982,2106.1,2105.8,0.00712132]
[1741534980172,0.95687132,2106.2,2105.9,0.94986]
[1741534980380,0.00712132,2106.2,2106.0,3.2078]
[1741534980571,0.94979,2106.1,2106.0,3.2078]
[1741534980772,0.94988,2105.9,2105.8,0.00712132]
[1741534983676,6.249,2105.9,2105.1,3.2078]
[1741534983980,3.2078,2105.7,2105.1,3.2078]
[1741534984175,0.9501,2105.5,2105.1,4.15801]
[1741534984374,3.2078,2105.7,2105.1,3.2078]
[1741534984574,0.95009,2105.5,2105.1,4.15802]
[1741534984878,0.95009,2105.5,2105.2,0.00712132]
[1741534985080,0.9501,2105.5,2105.2,0.00712132]
[1741534985380,0.95011,2105.4,2105.2,0.00712132]
[1741534985780,0.95015,2105.3,2105.2,0.00712132]
[1741534986174,3.2078,2105.7,2105.2,0.95730132]
[1741534986370,6.0664,2106.0,2105.5,3.2078]
[1741534986572,0.95,2105.7,2105.6,40.8]
[1741534986974,6.0664,2106.0,2105.6,40.8]
[1741534987280,0.94994,2105.8,2105.6,40.8]
[1741534987579,2.38152132,2106.2,2105.6,40.8]
[1741534987580,0.00712132,2106.2,2105.6,40.8]
[1741534987774,0.00712132,2106.2,2106.0,0.94982]
[1741534987982,0.00712132,2106.2,2105.8,3.2078]
[1741534988182,0.00712132,2106.2,2106.0,0.94982]
[1741534988383,0.95688132,2106.2,2105.9,0.94986]
[1741534988571,0.94979,2106.1,2105.8,4.1577]
[1741534988777,0.94984,2106.0,2105.8,3.2078]
[1741534989072,0.94984,2106.0,2105.8,4.15772]
[1741534989274,0.94984,2106.0,2105.8,3.2078]
[1741534989473,0.94988,2105.9,2105.8,3.2078]
[1741534989681,0.00712132,2106.2,2105.8,3.2078]
[1741534989978,0.94985,2106.0,2105.8,4.15771]
[1741534990477,0.94988,2105.9,2105.8,3.2078]
[1741534990682,0.94986,2106.0,2105.8,3.2078]
[1741534990870,0.00712132,2106.2,2105.8,3.2078]
[1741534991075,0.94988,2105.9,2105.8,3.2078]
[1741534991476,0.94997,2105.7,2105.6,44.3779]
[1741534991682,0.94999,2105.7,2105.5,3.2078]
[1741534991976,3.84522132,2106.2,2105.5,3.2078]
[1741534992182,3.84522132,2106.2,2105.7,0.94995]
[1741534992183,0.94985,2106.0,2105.7,0.94995]
[1741534992388,0.00712132,2106.2,2105.9,3.2078]
[1741534992583,0.95688132,2106.2,2105.9,4.15766]
[1741534992778,0.00712132,2106.2,2105.6,4.15781]
[1741534993083,0.00712132,2106.2,2105.6,3.2078]
[1741534993084,0.94997,2105.7,2105.6,3.2078]
[1741534993578,0.95001,2105.6,2105.5,0.6151]
[1741534993979,3.2078,2105.8,2105.4,0.6074]
[1741534994278,0.95015,2105.3,2105.2,0.00712132]
[1741534996480,3.2078,2105.8,2105.2,0.00712132]
[1741534996689,0.95009,2105.5,2105.2,0.95730132]
[1741534996873,3.2078,2105.8,2105.3,3.2078]
[1741534997075,0.94992,2105.9,2105.6,3.2078]
[1741534997280,0.94997,2105.7,2105.6,3.2078]
[1741534997488,0.94997,2105.8,2105.6,3.2078]
[1741534997688,0.94997,2105.8,2105.6,3.8289]
[1741534997879,3.2078,2106.1,2105.6,3.8289]
[1741534998079,0.94997,2105.7,2105.6,3.8289]
[1741534998280,0.94997,2105.7,2105.6,0.6211]
[1741534998988,0.94992,2105.9,2105.6,0.6211]
[1741534999184,0.00712132,2106.2,2105.8,3.2078]
[1741534999683,0.94981,2106.1,2105.9,0.94987]
[1741534999886,0.94981,2106.1,2105.8,4.1577]
[1741535000082,0.94981,2106.1,2105.8,3.2078]
[1741535000283,0.94985,2106.0,2105.8,4.15771]
[1741535000481,0.00712132,2106.2,2105.8,3.2078]
[1741535000682,0.00712132,2106.2,2105.9,0.94987]
[1741535000986,0.00712132,2106.2,2105.8,3.2078]
[1741535001286,0.00712132,2106.2,2105.7,8.4378]
[1741535001486,0.00712132,2106.2,2105.7,6.1928]
[1741535002382,0.94992,2105.8,2105.7,6.1928]
[1741535004384,0.94992,2105.8,2105.7,3.2078]
[1741535004887,3.21492132,2106.2,2105.7,3.2078]
[1741535005281,0.94992,2105.8,2105.7,3.2078]
[1741535005586,0.94997,2105.7,2105.6,0.6211]
[1741535006086,3.21492132,2106.2,2105.6,0.6211]
[1741535006287,0.00712132,2106.2,2105.7,3.2078]
[1741535006784,0.94984,2106.0,2105.8,0.94991]
[1741535006991,0.00712132,2106.2,2105.8,43.98791]
[1741535007291,0.00712132,2106.2,2106.0,3.2078]
[1741535007489,0.94979,2106.1,2106.0,3.2078]
[1741535007885,0.00712132,2106.2,2105.8,3.18792]
[1741535007886,0.00712132,2106.2,2105.8,2.238]
[1741535008393,0.94985,2106.0,2105.8,3.18792]
[1741535008689,0.94983,2106.0,2105.9,3.2078]
[1741535008889,0.00712132,2106.2,2105.8,2.238]
[1741535009082,0.94997,2105.7,2105.6,3.8289]
[1741535009983,0.00712132,2106.2,2105.6,3.8289]
[1741535010386,0.94991,2105.9,2105.7,0.94997]
[1741535010592,0.00712132,2106.2,2105.8,0.94989]
[1741535010889,0.00712132,2106.2,2105.9,3.2078]
[1741535011088,0.95688132,2106.2,2106.0,0.94982]
[1741535011289,0.00712132,2106.2,2106.1,0.94979]
[1741535011488,0.00712132,2106.2,2106.1,1.59549]
[1741535011892,0.00712132,2106.2,2106.1,4.58049]
[1741535012196,0.94954,2106.7,2106.1,7.6307]
[1741535012393,0.9495,2106.8,2106.6,0.94956]
[1741535012693,0.9495,2106.8,2106.7,3.2078]
[1741535012892,0.9495,2106.8,2106.7,3.8535]
[1741535013090,0.94945,2106.9,2106.7,3.8535]
[1741535013293,0.94947,2106.8,2106.7,3.8535]
[1741535013486,0.00712132,2107.0,2106.7,3.8535]
[1741535013693,0.94944,2106.9,2106.7,4.80299]
[1741535014591,0.00712132,2107.0,2106.7,3.8535]
[1741535015092,0.00712132,2107.0,2106.9,0.94943]
[1741535015995,0.00712132,2107.0,2106.8,40.8]
[1741535016493,0.95653132,2107.0,2106.8,40.8]
[1741535016897,0.00712132,2107.0,2106.8,41.74947]
[1741535017097,0.95651132,2107.0,2106.8,0.94947]
[1741535017300,0.95651132,2107.0,2106.7,4.803]
[1741535017495,0.00712132,2107.0,2106.7,44.6535]
[1741535017695,0.94943,2106.9,2106.7,3.8535]
[1741535017991,0.94946,2106.9,2106.7,3.8535]
[1741535018189,0.94947,2106.8,2106.7,3.8535]
[1741535018791,0.00712132,2107.0,2106.7,3.8535]
[1741535018997,0.94943,2106.9,2106.7,3.8535]
[1741535019401,0.00712132,2107.0,2106.8,0.94943]
[1741535019696,0.95651132,2107.0,2106.7,3.8535]
[1741535019900,0.00712132,2107.0,2106.9,0.94943]
[1741535020100,0.00712132,2107.0,2106.7,3.8535]
[1741535020304,0.00712132,2107.0,2106.8,0.94944]
[1741535020490,0.94945,2106.9,2106.7,3.8535]
[1741535020696,0.94917,2107.5,2106.7,10.22723]
[1741535020896,0.94924,2107.4,2107.1,4.15712]
[1741535021097,1.2111,2107.7,2107.2,0.94928]
[1741535021308,0.6042,2107.7,2107.2,1.2539]
[1741535021496,0.94923,2107.4,2107.2,1.2539]
[1741535021797,0.00712132,2107.5,2107.2,1.2539]
[1741535022000,0.94925,2107.3,2107.2,1.2539]
[1741535022998,0.94925,2107.3,2107.2,0.6272]
[1741535023200,0.94934,2107.1,2107.0,2.236]
[1741535023401,0.94934,2107.1,2106.8,3.2078]
[1741535023596,0.94943,2106.9,2106.8,3.2078]
[1741535024101,0.94941,2107.0,2106.8,3.2078]
[1741535024301,0.94943,2106.9,2106.8,3.2078]
[1741535024699,3.2078,2107.3,2106.8,3.2078]
[1741535024901,0.94943,2106.9,2106.8,3.2078]
[1741535025304,0.94947,2106.8,2106.7,1.2539]
[1741535026206,0.94956,2106.6,2106.5,3.21492132]
[1741535028999,0.94956,2106.6,2106.5,0.00712132]
[1741535029200,5.4388,2106.7,2106.0,22.5838]
[1741535029510,5.4388,2106.7,2105.7,2.985]
[1741535029511,0.94992,2105.9,2105.7,2.985]
[1741535029707,2.37425,2106.3,2105.6,0.619]
[1741535029708,4.60825,2106.3,2105.6,0.619]
[1741535029905,0.94994,2105.8,2105.6,0.619]
[1741535030308,3.2078,2106.1,2105.6,0.619]
[1741535030500,0.00712132,2105.9,2105.8,4.15772]
[1741535031605,0.00712132,2105.9,2105.8,3.2078]
[1741535032307,0.00712132,2105.9,2105.8,4.15772]
[1741535032703,3.2078,2106.5,2105.8,7.2078]
[1741535032910,3.8163,2106.8,2106.1,3.2078]
[1741535033105,3.8163,2106.8,2106.4,4.15745]
[1741535033402,5.4398,2107.3,2106.4,3.2078]
[1741535033606,0.94955,2106.7,2106.5,0.6131]
[1741535033811,0.94955,2106.7,2106.6,40.8]
[1741535034009,0.00712132,2106.8,2106.6,40.8]
[1741535034218,0.94956,2106.6,2106.5,2.8461]
[1741535034407,0.00712132,2106.8,2106.5,2.8461]
[1741535034602,0.94956,2106.6,2106.5,2.233]
[1741535034807,0.00712132,2106.8,2106.5,2.233]
[1741535035008,0.94956,2106.6,2106.5,2.233]
[1741535035202,0.00712132,2106.8,2106.4,44.01492132]
[1741535035409,0.94959,2106.6,2106.4,3.21492132]
[1741535035608,0.00712132,2106.8,2106.4,3.21492132]
[1741535035811,0.94961,2106.5,2106.4,3.21492132]
[1741535036117,0.94961,2106.5,2106.4,0.00712132]
[1741535037417,0.00712132,2106.8,2106.4,0.00712132]
[1741535037615,0.94958,2106.6,2106.4,0.00712132]
[1741535037818,0.94961,2106.5,2106.4,0.00712132]
[1741535038116,0.94961,2106.5,2106.4,3.21492132]
[1741535038318,0.00712132,2106.8,2106.4,3.21492132]
[1741535038713,0.94961,2106.5,2106.4,3.21492132]
[1741535039911,0.95663132,2106.8,2106.6,0.94955]
[1741535040115,0.95663132,2106.8,2106.5,0.94957]
[1741535040519,0.95663132,2106.8,2106.4,3.21492132]
[1741535040520,0.00712132,2106.8,2106.4,3.21492132]
[1741535040722,0.94955,2106.7,2106.4,3.21492132]
[1741535040909,0.95661132,2106.8,2106.6,0.94956]
[1741535041408,0.94954,2106.7,2106.5,0.94959]
[1741535041615,0.95662132,2106.8,2106.4,3.21492132]
[1741535041809,0.00712132,2106.8,2106.4,3.21492132]
[1741535042018,0.95661132,2106.8,2106.4,5.43692132]
[1741535042219,0.95661132,2106.8,2106.5,0.94961]
[1741535042416,0.94957,2106.6,2106.4,7.02955132]
[1741535042616,0.00712132,2106.8,2106.4,6.07992132]
[1741535042815,0.94955,2106.7,2106.5,0.94961]
[1741535043225,0.00712132,2106.8,2106.4,6.07992132]
[1741535043423,0.94961,2106.5,2106.4,0.00712132]
[1741535044022,0.95663132,2106.8,2106.4,0.00712132]
[1741535044314,0.94958,2106.6,2106.4,0.95675132]
[1741535044920,0.00712132,2106.8,2106.4,0.00712132]
[1741535045426,0.94956,2106.6,2106.4,0.95674132]
[1741535045826,0.94961,2106.5,2106.4,0.00712132]
[1741535047728,3.21492132,2106.8,2106.4,0.00712132]
[1741535047925,0.94961,2106.5,2106.4,0.00712132]
[1741535048632,3.21492132,2106.8,2106.4,0.00712132]
[1741535048921,0.00712132,2106.8,2106.7,4.15732]
[1741535049126,0.95659132,2106.8,2106.7,3.2078]
[1741535049327,0.94959,2106.6,2106.4,3.87192132]
[1741535049521,0.94961,2106.5,2106.4,3.21492132]
[1741535050117,0.94961,2106.5,2106.4,0.00712132]
[1741535051932,0.00712132,2106.8,2106.4,0.00712132]
[1741535052430,0.00712132,2106.8,2106.7,0.94952]
[1741535052625,0.00712132,2106.8,2106.7,4.15732]
[1741535053325,0.94931,2107.2,2107.0,0.94937]
[1741535053634,3.4808,2107.5,2106.8,1.2609]
[1741535053827,0.94931,2107.2,2107.0,4.15716]
[1741535054130,4.42999,2107.5,2107.2,0.94928]
[1741535054325,0.94922,2107.4,2107.2,0.94928]
[1741535054725,1.2578,2107.5,2107.2,0.94928]
[1741535054926,3.21254756,2107.6,2107.3,0.94922]
[1741535055226,0.94918,2107.5,2107.3,4.15702]
[1741535055428,0.00474756,2107.6,2107.5,0.94916]
[1741535056630,0.00474756,2107.6,2107.5,1.57946]
[1741535057328,0.9489,2108.1,2107.8,0.94898]
[1741535057534,5.4298,2108.4,2107.8,3.2078]
[1741535057831,0.94898,2107.9,2107.8,3.2078]
[1741535059534,3.2078,2108.0,2107.6,0.00712132]
[1741535059733,0.94904,2107.8,2107.6,0.00712132]
[1741535060027,3.2078,2108.3,2107.6,0.00712132]
[1741535060228,0.94907,2107.7,2107.6,0.00712132]
[1741535060433,0.94902,2107.9,2107.6,0.95623132]
[1741535060635,0.6528,2108.1,2107.6,0.95623132]
[1741535060933,0.94903,2107.8,2107.6,0.00712132]
[1741535061135,0.94907,2107.7,2107.6,0.00712132]
[1741535062140,0.6067,2108.0,2107.6,0.00712132]
[1741535062340,0.94898,2107.9,2107.7,0.94906]
[1741535062540,0.6528,2108.1,2107.6,0.00712132]
[1741535062741,0.94889,2108.1,2107.9,0.94896]
[1741535063037,0.94896,2108.0,2107.8,0.94902]
[1741535063244,3.2078,2108.3,2107.7,44.0078]
[1741535063536,0.94891,2108.1,2107.7,44.0078]
[1741535063836,0.94891,2108.1,2107.8,0.94899]
[1741535064444,0.94892,2108.1,2107.7,44.0078]
[1741535064644,0.94895,2108.0,2107.8,0.94902]
[1741535064837,0.94891,2108.1,2107.7,44.0078]
[1741535065036,2.218,2108.4,2107.9,0.94894]
[1741535065242,0.94892,2108.1,2107.8,1.57989]
[1741535067741,0.94892,2108.1,2107.9,0.94898]
[1741535067944,0.94888,2108.2,2108.0,0.94891]
[1741535068145,2.218,2108.4,2107.9,1.2733]
[1741535068344,1.2595,2108.5,2107.9,1.2733]
[1741535068544,1.2595,2108.5,2108.0,3.2078]
[1741535068735,0.94884,2108.2,2108.0,4.15671]
[1741535068941,1.2595,2108.5,2108.0,3.2078]
[1741535069245,0.94879,2108.4,2108.1,0.94885]
[1741535069446,1.2595,2108.5,2108.3,0.94878]
[1741535069447,0.94873,2108.5,2108.3,0.94878]
[1741535069743,0.94873,2108.5,2108.3,4.15658]
[1741535070437,3.8325,2108.9,2108.3,3.2078]
[1741535070438,0.94875,2108.4,2108.3,3.2078]
[1741535070939,0.94872,2108.5,2108.3,4.15658]
[1741535071140,3.2078,2108.9,2108.4,2.208]
[1741535071340,0.94854,2108.9,2108.7,0.9486]
[1741535071953,0.94854,2108.9,2108.6,4.15643]
[1741535072141,0.94858,2108.8,2108.6,4.15643]
[1741535072342,5.57888,2109.2,2108.6,3.2078]
[1741535072542,0.94859,2108.8,2108.6,4.15646]
[1741535072750,0.94854,2108.9,2108.7,0.9486]
[1741535073249,3.2078,2109.2,2108.6,3.2078]
[1741535073450,0.94851,2109.0,2108.6,3.2078]
[1741535073651,0.94855,2108.9,2108.6,3.2078]
[1741535073852,0.94862,2108.7,2108.6,3.2078]
[1741535074146,0.94866,2108.6,2108.5,2.21312132]
[1741535075953,0.94866,2108.6,2108.5,0.00712132]
[1741535078451,0.94866,2108.6,2108.5,1.32e-06]
[1741535078649,8.15646,2108.6,2108.5,1.32e-06]
[1741535078954,10.36146,2108.6,2108.5,1.32e-06]
[1741535079555,9.4128,2108.6,2107.7,3.2078]
[1741535079760,0.94907,2107.7,2107.6,1.302]
[1741535080048,5.57992,2108.2,2107.6,2.25108]
[1741535080246,0.94904,2107.8,2107.6,1.302]
[1741535080448,0.94907,2107.7,2107.6,1.302]
[1741535082148,0.94911,2107.6,2107.5,3.2078]
[1741535082358,3.2078,2107.9,2107.4,0.00712132]
[1741535082557,0.94916,2107.5,2107.4,0.00712132]
[1741535083158,0.94929,2107.2,2107.1,3.2078]
[1741535083460,0.94929,2107.2,2107.1,44.0078]
[1741535083956,0.94928,2107.3,2107.1,44.0078]
[1741535084258,1.2281,2107.5,2107.1,4.15712]
[1741535084457,1.2281,2107.5,2107.1,3.2078]
[1741535084660,0.94926,2107.3,2107.1,3.2078]
[1741535085048,0.94926,2107.3,2107.1,4.15712]
[1741535085251,0.94928,2107.3,2107.1,3.2078]
[1741535085553,0.94929,2107.2,2107.1,3.2078]
[1741535087067,1.2281,2107.5,2107.1,3.2078]
[1741535087359,0.94929,2107.2,2107.1,3.2078]
[1741535088258,1.2281,2107.5,2107.1,3.2078]
[1741535088654,0.94921,2107.4,2107.2,0.94927]
[1741535089162,5.41392132,2107.9,2107.3,0.94922]
[1741535089359,5.41392132,2107.9,2107.4,3.2078]
[1741535089360,0.94917,2107.5,2107.4,3.2078]
[1741535089754,0.94916,2107.5,2107.4,3.2078]
[1741535090860,0.94902,2107.8,2107.6,0.94909]
[1741535091061,0.94902,2107.8,2107.4,3.2078]
[1741535091258,0.00712132,2107.9,2107.4,3.2078]
[1741535091259,0.94914,2107.6,2107.4,3.2078]
[1741535091567,0.94914,2107.6,2107.4,4.157]
[1741535092564,0.94902,2107.8,2107.5,0.94914]
[1741535092867,0.00712132,2107.9,2107.6,0.94909]
[1741535093068,0.94904,2107.8,2107.7,3.2078]
[1741535093266,0.95613132,2107.9,2107.7,4.15687]
[1741535093458,0.00712132,2107.9,2107.7,3.2078]
[1741535093664,0.00712132,2107.9,2107.8,2.24132]
[1741535094259,0.95610132,2107.9,2107.8,1.2923]
[1741535095369,0.00712132,2107.9,2107.8,2.24132]
[1741535095868,0.00712132,2107.9,2107.8,1.2923]
[1741535096059,0.95610132,2107.9,2107.8,1.2923]
[1741535097267,0.94902,2107.8,2107.7,5.4058]
[1741535097573,0.94916,2107.5,2107.4,3.8083]
[1741535098167,3.2078,2107.6,2107.1,3.2078]
[1741535098367,0.94929,2107.2,2107.1,3.2078]
[1741535100368,0.94934,2107.1,2107.0,0.00712132]
[1741535100967,0.94934,2107.1,2107.0,40.80712132]
[1741535101167,0.94934,2107.1,2107.0,0.00712132]
[1741535104068,4.15713,2107.2,2107.0,0.00712132]
[1741535104270,0.94934,2107.1,2107.0,0.00712132]
[1741535104871,3.2078,2107.5,2107.1,0.94931]
[1741535105075,19.359,2108.6,2107.2,3.2078]
[1741535105076,0.635,2107.7,2107.2,3.2078]
[1741535105276,5.42692132,2107.9,2107.3,0.6266]
[1741535105480,3.21492132,2107.9,2107.3,1.2291]
[1741535106070,0.94919,2107.5,2107.3,1.2291]
[1741535106270,0.9492,2107.4,2107.3,1.2291]
[1741535106467,0.94919,2107.5,2107.3,1.2291]
[1741535106875,5.58745132,2107.9,2107.4,2.215]
[1741535106876,0.95613132,2107.9,2107.4,2.215]
[1741535107073,0.00712132,2107.9,2107.5,3.2078]
[1741535107269,0.00712132,2107.9,2107.8,3.2078]
[1741535107469,0.00712132,2107.9,2107.8,0.94902]
[1741535107679,0.00712132,2107.9,2107.8,4.15682]
[1741535108173,0.00712132,2107.9,2107.8,3.2078]
[1741535108969,0.95610132,2107.9,2107.8,3.2078]
[1741535109381,0.00712132,2107.9,2107.5,3.2078]
[1741535109676,0.94909,2107.7,2107.4,3.16418]
[1741535109971,0.94908,2107.7,2107.5,3.2078]
[1741535110477,0.94905,2107.8,2107.5,3.2078]
[1741535110677,0.95612132,2107.9,2107.6,0.94911]
[1741535110976,0.94905,2107.8,2107.5,4.15694]
[1741535111172,0.94904,2107.8,2107.5,4.15694]
[1741535111572,0.94904,2107.8,2107.6,0.94911]
[1741535111773,0.95613132,2107.9,2107.6,0.94911]
[1741535111978,0.00712132,2107.9,2107.5,3.2078]
[1741535112277,0.9491,2107.7,2107.5,3.2078]
[1741535112475,0.00712132,2107.9,2107.5,3.2078]
[1741535112877,0.94905,2107.8,2107.5,4.15694]
[1741535113076,0.94904,2107.8,2107.6,0.94909]
[1741535113265,0.94904,2107.8,2107.5,4.15693]
[1741535113471,0.94904,2107.8,2107.5,3.2078]
[1741535113670,0.94904,2107.8,2107.5,4.15694]
[1741535113877,0.94908,2107.7,2107.5,4.15696]
[1741535114073,0.00712132,2107.9,2107.6,0.94908]
[1741535114379,0.00712132,2107.9,2107.5,3.2078]
[1741535114582,0.00712132,2107.9,2107.6,0.6306]
[1741535115078,0.94911,2107.6,2107.5,3.2078]
[1741535115380,0.00712132,2107.9,2107.2,2.985]
[1741535115381,0.94925,2107.3,2107.2,2.216]
[1741535115973,0.94932,2107.2,2106.9,7.0393]
[1741535116176,2.37279,2107.6,2107.0,0.00712132]
[1741535116177,0.94934,2107.1,2107.0,0.00712132]
[1741535118781,5.4208,2107.3,2107.0,0.00712132]
[1741535118782,3.2078,2107.3,2107.0,0.00712132]
[1741535119074,0.94934,2107.1,2107.0,3.21492132]
[1741535119279,0.94934,2107.1,2107.0,0.00712132]
[1741535120877,0.94934,2107.1,2106.5,1.7164]
[1741535120878,5.4198,2107.2,2106.5,1.2412]
[1741535121079,2.3738,2106.7,2106.2,19.977]
[1741535121281,0.9497,2106.3,2106.2,19.977]
[1741535121581,0.9497,2106.3,2106.2,60.158]
[1741535121881,0.94968,2106.4,2106.2,60.158]
[1741535122284,0.9497,2106.3,2106.2,60.158]
[1741535122476,0.00712132,2106.5,2106.0,0.00712132]
[1741535122477,0.94979,2106.1,2106.0,0.00712132]